Cogmind - Beta 13 @@@ ROGUE MODE // 2024.07.11 @ 00:59:34 Player: MooMoo Result: Destroyed by Y-45 Defender with Heavy Assault Rifle Performance ------------- Evolutions (1) 500 Regions Visited (3) 600 Robots Destroyed (27) 135 Value Destroyed (593) 593 Prototype IDs (0) 0 Alien Tech Used (0) 0 Bonus (0) 0 TOTAL SCORE: 1828 Bonus ------- None Cogmind --------- Core Integrity 0/400 Matter 231/300 Energy 250/250 System Corruption 0% Temperature Cool (0) Movement Walking (120) Location -9/Materials Parts ------- > --- POWER (1) -------- Ion Engine > --- PROPULSION (3) --- Aluminum Leg Aluminum Leg Aluminum Leg > --- UTILITY (3) ------ Heat Sink Large Storage Unit > --- WEAPON (2) ------- Small Laser Heavy Assault Rifle > --- INVENTORY (15) --- Ion Engine Ion Engine Ion Engine Light Ion Engine Improved Treads Armored Treads Aluminum Leg Aluminum Leg Heat Sink Weight Redist. System Improved Trap Extractor (0/6) Light Assault Rifle Light Assault Rifle Peak State ------------ > --- POWER ------------ Light Ion Engine > --- PROPULSION ------- Light Treads Armored Treads > --- UTILITY ---------- Heat Sink Melee Analysis Suite Improved Trap Extractor > --- WEAPON ----------- Light Assault Rifle Light Assault Rifle > --- INVENTORY -------- High-capacity Storage Unit Light Assault Rifle Heavy Assault Rifle [Rating: 15] Favorites ----------- Power Ion Engine Engine Ion Engine Propulsion Light Treads Treads Light Treads Leg Aluminum Leg Wheel Compact Wheel Flight Unit Flight Unit Utility Small Storage Unit Device Heat Sink Storage Small Storage Unit Processor Melee Analysis Suite Protection Light Armor Plating Weapon Light Assault Rifle Energy Gun Small Laser Ballistic Gun Light Assault Rifle Launcher Rocket Launcher Special Weapon Plasma Cutter Special Melee Weapon Datajack Build | -11 -10 -10 -9 ------- Run | Yrd Mat Min Mat Slots Evolved 2 | . . . 2 Power . | . . . . Propulsion 1 | . . . 1 Utility 1 | . . . 1 Weapon . | . . . . Parts Attached 46 | 5 4 9 28 Power 5 | 1 . . 4 Engine 5 | 1 . . 4 Core . | . . . . Reactor . | . . . . Propulsion 17 | 2 2 3 10 Treads 7 | 2 . 2 3 Leg 5 | . . . 5 Wheel 4 | . 2 1 1 Hover . | . . . . Flight 1 | . . . 1 Utility 9 | . 1 3 5 Device 3 | . . 1 2 Storage 3 | . . 2 1 Processor 2 | . 1 . 1 Hackware . | . . . . Protection 1 | . . . 1 Artifact . | . . . . Weapon 15 | 2 1 3 9 Energy Gun 2 | . 1 . 1 Energy Cannon . | . . . . Ballistic Gun 10 | 2 . 1 7 Ballistic Cannon . | . . . . Launcher 1 | . . 1 . Special Weapon 1 | . . . 1 Impact Weapon . | . . . . Slashing Weapon . | . . . . Piercing Weapon . | . . . . Special Melee Weapon 1 | . . 1 . Unidentified Prototypes . | . . . . Parts Lost 20 | . . 3 17 Power 3 | . . . 3 Propulsion 7 | . . 1 6 Utility 2 | . . . 2 Weapon 8 | . . 2 6 Highest Loss Streak 9 | . . 1 9 To Critical Strikes . | . . . . Average Slot Usage (%) 76 | . 70 71 83 Engine 12 | . 14 14 10 Treads 15 | . 17 1 20 Leg 1 | . . . 3 Wheel 5 | . 7 16 . Device 5 | . . . 11 Storage 6 | . . 14 6 Processor 2 | . 1 . 3 Protection 2 | . . . 5 Energy Gun 5 | . 2 14 4 Ballistic Gun 16 | . 25 9 14 Naked Turns . | . . . . Heaviest Build 53 | 8 8 53 33 Greatest Support 63 | 40 40 40 63 Greatest Overweight (x) 1 | . . 1 1 Average Overweight (x) . | . . . . Largest Inventory Capacity 20 | 5 5 20 15 Average Capacity 7 | 5 5 8 8 Most Carried 15 | 5 5 8 15 Average Carried 6 | 3 4 6 7 Final Capacity 15 | 5 5 8 15 Final Carried 13 | 5 5 8 13 Class Distribution -------------------- 72% | Mutant 27% | Scavenger-Mutant Dominant Class ---------------- Mutant | -10/Materials Mutant | -10/Mines Scavenger-Mutant | -9/Materials Resources | -11 -10 -10 -9 ----------- Run | Yrd Mat Min Mat Matter Collected 789 | 225 77 21 466 Remotely . | . . . . Salvage Created 833 | . 107 23 703 Parts 59 | . 10 . 49 Haulers Intercepted . | . . . . Recyclers Shooed 2 | . . . 2 Parts Field Recycled . | . . . . Retrieved Matter . | . . . . Parts Self-Destructed . | . . . . Prevented . | . . . . Kills | -11 -10 -10 -9 ------- Run | Yrd Mat Min Mat Combat Hostiles Destroyed 29 | . 4 5 20 Melee 1 | . . . 1 Guns 23 | . 4 . 19 AOE 5 | . . 5 . Classes Destroyed 6 | . 3 1 2 Worker 2 | . 1 . 1 Recycler 1 | . . . 1 Swarmer 11 | . 3 . 8 Grunt 10 | . 1 . 9 Sentry 3 | . . . 3 Assembled 5 | . . 5 . Best Kill Streak 6 | . 5 4 6 Combat Bots Only 4 | . 4 4 4 Max Kills in Single Turn 2 | . 1 2 1 Gunslinging . | . . . . Exploded 2 | . . 2 . Melee 1 | . . . 1 Uniques/NPCs Destroyed . | . . . . Combat | -11 -10 -10 -9 -------- Run | Yrd Mat Min Mat Hostile Shots Fired 398 | . 60 10 328 Missed 121 | . 16 2 103 Damage Taken 2965 | . 376 257 2332 Core 622 | . 90 119 413 Absorbed by Shields 16 | . . . 16 Core Remaining (%) 58 | 100 . 16 . Volleys Fired 105 | . 13 4 88 Largest 2 | . 2 2 2 Hottest 73 | . 40 73 63 Shots Fired 178 | . 26 8 144 Gun 171 | . 26 5 140 Cannon . | . . . . Launcher 3 | . . 3 . Special 4 | . . . 4 Kinetic 149 | . 26 1 122 Thermal 26 | . . 4 22 Explosive 3 | . . 3 . Electromagnetic . | . . . . Robot Hit Streak 11 | . 6 7 11 Robot Miss Streak 5 | . 3 . 5 Penetration Max . | . . . . Secondary Targets 2 | . 2 . . Max Gunslinging Chain 1 | . 1 . . Shots Hit Robots 109 | . 15 4 90 Core Hits 51 | . 7 8 36 Critical Kills . | . . . . Critical Parts Destroyed . | . . . . Critical Strikes . | . . . . Melee Attacks . | . . . . Impact . | . . . . Slashing . | . . . . Piercing . | . . . . Sneak Attacks . | . . . . Combat Hostiles . | . . . . Follow-up Attacks . | . . . . Damage Inflicted 1578 | . 177 359 1042 Guns 1251 | . 177 36 1038 Cannons . | . . . . Explosions 323 | . . 323 . Melee . | . . . . Ramming 4 | . . . 4 Kinetic 1110 | . 177 12 921 Thermal 141 | . . 24 117 Explosive 323 | . . 323 . Electromagnetic . | . . . . Impact . | . . . . Slashing . | . . . . Piercing . | . . . . Highest Corruption . | . . . . Average Corruption . | . . . . Corruption Purged . | . . . . Corruption Blocked . | . . . . Overload Shots . | . . . . Overflow Damage 33 | . . 33 . Projectiles . | . . . . Explosions 33 | . . 33 . Melee . | . . . . Knockbacks . | . . . . Impact . | . . . . Kinetic . | . . . . Secondary . | . . . . Self-Inflicted Damage 91 | . . 91 . Shots 3 | . . 3 . Rammed . | . . . . Targets Rammed 1 | . . . 1 Kicked . | . . . . Crushed 1 | . . . 1 Highest Temperature 44 | . 6 44 6 Average Temperature 11 | . 6 22 4 Received Heat Transfer 720 | . 42 60 618 Siege Activations . | . . . . Robots Corrupted . | . . . . Combat Hostiles . | . . . . Parts Fried . | . . . . Impact Corruptions . | . . . . Robots Melted . | . . . . Combat Hostiles . | . . . . Parts Melted . | . . . . Heat Transferred 325 | . . 50 275 Parts Sabotaged . | . . . . Parts Stolen . | . . . . Parts Stripped . | . . . . Power Chain Reactions . | . . . . Alert | -11 -10 -10 -9 ------- Run | Yrd Mat Min Mat Peak Influence 230 | . 155 21 230 Initial 3 | . . . 3 Average 89 | . 82 7 142 Maximum Alert Level 1 | . . . 1 Low Security (%) 92 | 100 100 100 83 Level 1 7 | . . . 16 Level 2 . | . . . . Level 3 . | . . . . Level 4 . | . . . . Level 5 . | . . . . High Security . | . . . . Max Security . | . . . . Squads Dispatched 3 | . . . 3 Investigation 2 | . . . 2 Extermination . | . . . . Reinforcement 1 | . . . 1 Assault . | . . . . Garrison . | . . . . Intercept . | . . . . Searches Triggered . | . . . . Construction Impeded . | . . . . Haulers Reinforced . | . . . . Active Scanning Responses . | . . . . Cargo Convoy Interrupts . | . . . . Stealth | -11 -10 -10 -9 --------- Run | Yrd Mat Min Mat Distress Signals 4 | . 1 . 3 Communications Jammed . | . . . . Distress Signals . | . . . . Times Spotted 53 | . 11 8 34 Peak Tracking Total 10 | . 5 5 10 Tactical Retreats 4 | . 1 2 1 Traps | -11 -10 -10 -9 ------- Run | Yrd Mat Min Mat Traps Triggered 5 | . 2 1 2 Indirectly . | . . . . Trap Hack Attempts . | . . . . Triggered . | . . . . Disarmed . | . . . . Reprogrammed . | . . . . Reused . | . . . . Traps Extracted . | . . . . Installed . | . . . . Triggered . | . . . . Machines | -11 -10 -10 -9 ---------- Run | Yrd Mat Min Mat Machines Disabled . | . . . . Max in Single Turn . | . . . . Machines Repaired . | . . . . Machines Dismantled . | . . . . Machines Sabotaged . | . . . . Overloaded Fab Kills . | . . . . Hacking | -11 -10 -10 -9 --------- Run | Yrd Mat Min Mat Machines Accessed 2 | . 1 1 . Terminals 1 | . 1 . . Fabricators . | . . . . Repair Stations . | . . . . Recycling Units . | . . . . Scanalyzers . | . . . . Garrison Access . | . . . . Total Hacks 3 | . 2 1 . Successful 1 | . . 1 . Failed 2 | . 2 . . Catastrophic . | . . . . Database Lockouts . | . . . . Manual . | . . . . Terminals 2 | . 2 . . Fabricators . | . . . . Repair Stations . | . . . . Recycling Units . | . . . . Scanalyzers . | . . . . Garrison Access . | . . . . Terminal Hacks 1 | . . 1 . Open Door 1 | . . 1 . Fabricator Hacks . | . . . . Repair Station Hacks . | . . . . Recycling Unit Hacks . | . . . . Scanalyzer . | . . . . Garrison Access Hacks . | . . . . Unauthorized Hacks . | . . . . Terminals . | . . . . Fabricators . | . . . . Repair Stations . | . . . . Recycling Units . | . . . . Scanalyzers . | . . . . Garrison Access . | . . . . Data Cores Recovered . | . . . . Used . | . . . . Hacking Detections 1 | . 1 . . Full Trace Events . | . . . . Feedback Events . | . . . . Feedback Blocked . | . . . . Robot Schematics Acquired . | . . . . Robots Built . | . . . . Authchips . | . . . . Time . | . . . . Total Robot Build Rating . | . . . . Part Schematics Acquired . | . . . . Parts Built . | . . . . Authchips . | . . . . Time . | . . . . Total Part Build Rating . | . . . . Parts Repaired . | . . . . Time . | . . . . Parts Recycled . | . . . . Recycled Matter . | . . . . Retrieved Matter . | . . . . Retrieved Components . | . . . . Parts Scanalyzed . | . . . . Part Schematics Acquired . | . . . . Parts Damaged . | . . . . Bothacking | -11 -10 -10 -9 ------------ Run | Yrd Mat Min Mat Used RIF Installer . | . . . . Robots Hacked . | . . . . Non-combat . | . . . . Combat . | . . . . Robot Hacks Applied . | . . . . Relay Couplers Released . | . . . . Fabnet Peak Effective % . | . . . . Robots Rewired . | . . . . Allies Hacked . | . . . . Hacks Repelled . | . . . . Allies | -11 -10 -10 -9 -------- Run | Yrd Mat Min Mat Total Allies . | . . . . Largest Group . | . . . . Highest-Rated Group . | . . . . Highest-Rated Ally . | . . . . Total Orders . | . . . . Ally Attacks . | . . . . Total Damage . | . . . . Kills . | . . . . Allies Corrupted . | . . . . Allies Melted . | . . . . Intel | -11 -10 -10 -9 ------- Run | Yrd Mat Min Mat Robot Analysis Total . | . . . . Derelict Logs Recovered 1 | . . 1 . Drone Launches . | . . . . Drone Recoveries . | . . . . Exploration | -11 -10 -10 -9 ------------- Run | Yrd Mat Min Mat Turns Passed 1519 | 92 434 308 685 Spaces Moved 868 | 51 311 267 239 Core 1 | 1 . . . Treads 391 | 50 121 8 212 Legs 24 | . . . 24 Wheels 452 | . 190 259 3 Hover . | . . . . Flight . | . . . . Fastest Speed 50 | 50 100 100 100 Average Speed 128 | 157 123 102 160 Slowest Speed 190 | 160 160 170 190 Overloaded Moves . | . . . . Propulsion Burnouts . | . . . . Robots Hopped . | . . . . Cave-ins Triggered . | . . . . Exploration Rate (%) 34 | 4 44 66 25 Regions Visited 3 Branch Regions 1 Pre-discovered Areas 1 | . . 1 . Known Exits Taken 1 | . 1 . . Unknown Exits Taken 2 | 1 . 1 . Scrap Searched 1 | . . 1 . Spaces Dug . | . . . . Terrain Destroyed 34 | . . 34 . Melee . | . . . . Projectile . | . . . . AOE 34 | . . 34 . Terrain Rammed . | . . . . Walls Destroyed . | . . . . Machines Disabled . | . . . . Actions | -11 -10 -10 -9 --------- Run | Yrd Mat Min Mat Total 1095 | 60 337 293 405 Wait 39 | . 8 7 24 Move 865 | 50 310 266 239 Hop . | . . . . Pick Up 30 | 5 1 6 18 Fast Attach 20 | 5 2 3 10 Attach 17 | . 2 4 11 Detach 4 | . 1 1 2 Swap 9 | . . 2 7 Drop 5 | . . . 5 Fire 105 | . 13 4 88 Melee . | . . . . Ram . | . . . . Kick . | . . . . Crush 1 | . . . 1 Escape Stasis . | . . . . Rewire . | . . . . Trap . | . . . . Miscellaneous . | . . . . Route ------- -11/Scrapyard -10/Materials (discovered 2 exits: [*Mat] / *Min) -10/Mines -9/Materials History --------- Turn | Location | Event 13 | -11/Scrapyard | Discovered new exit (range 13) 93 | -11/Scrapyard | Entered Materials 248 | -10/Materials | Discovered new exit (range 16) 303 | -10/Materials | Build established: Mutant 418 | -10/Materials | Discovered new exit (range 9) 426 | -10/Materials | Identified exit to Mines 527 | -10/Materials | Entered Mines 537 | -10/Mines | Learned location of Storage (-8) 550 | -10/Mines | Learned Materials stockpile data 575 | -10/Mines | Received a Rocket Launcher from a helpful Derelict 684 | -10/Mines | Assembled infested the area 689 | -10/Mines | Assisted by a Guerilla fighting off Assembled 713 | -10/Mines | Core integrity fell below 50% 802 | -10/Mines | Discovered new exit (range 3) 807 | -10/Mines | Met a Derelict who couldn't figure out how to use a Trap Extractor 818 | -10/Mines | Core integrity fell below 20% 835 | -10/Mines | Entered Materials 835 | -9/Materials | Evolved 2 slots: Propulsion x1, Utility x1 975 | -9/Materials | Lost 4 parts (1p1n2w) 1018 | -9/Materials | Core integrity fell below 50% 1079 | -9/Materials | Lost 9 parts (2p4n1u2w) 1372 | -9/Materials | Build established: Scavenger-Mutant 1488 | -9/Materials | Core integrity fell below 20% 1520 | -9/Materials | Destroyed by Y-45 Defender with Heavy Assault Rifle Last Messages --------------- 01366_ Acquired 10 matter. 01371_ K-01 Serf collects debris. 01409_ Dropped Aluminum Leg. 01409_ Acquired Weight Redist. System. 01412_ R-06 Scavenger collects Aluminum Leg. 01455_ Atomic Centrifuge disabled. 01456_ Lgt. Armor Plating destroyed. 01458_ Crushed G-34 Mercenary. 01458_ G-34 Mercenary destroyed. 01459_ Acquired 4 matter. 01459_ Critical hit (Burn: +37). 01462_ O-16 Technician: "IFF HANDSHAKE FAILED. SECURING TERMINAL." 01465_ ALERT: Hostiles spotted, dispatching reinforcements to Terminal M004. 01475_ G-34 Mercenary destroyed. 01479_ M-13 Machinist repairs G-47 Trooper. 01514_ Plasma Cutter destroyed. 01519_ G-34 Mercenary destroyed. 01520_ Electrolysis Chamber disabled. Map ----- +----------------------------------------------------+ | ???????????????????????????# + #??????????# | | ???????????????????????????# # #??????????# | | ???????????????????????????# # #??????????# | | ???????????????????????????# ########??????????# | | ???????????????????????????# #?????????????????# | | ???????????????????????????# #?????????????????# | | ???????????????????????????# #?????????????????# | | ???????????????????????????# #?????????????????# | | ???????????????????????????# #????????????????? | | ???????????????????????????# #?????????????????? | | ???????????????????????????# #?????????????????? | | ?????????????????????????###+####????????????????? | | ?????????????????????????# #????????????????? | | ?????????????????????????# """ #????????????????? | | ?????????????????????????# """ #????????????????? | | ?????????????????????????# " #????????????????? | | ?????????????????????????# #????????????????? | | ?????????????????????????# =% #????????????????? | | ???????????##################+##########?????????? | | ???????????# =[ #?????? | | ???????????# #?????? | | ???????????# #?????? | | ????????????##########/######"########## ??????? | | ???????????????????# gY g #?? T?????????????????? | | ???????????????????# !%!#?? #???????????????? | | ???????????????????# "" [@#??"" #???????????????? | | ???????????????????# """ #??"" #???????????????? | | ???????????????????# """ =#??"" #???????????????? | | ???????????????????# #??? #???????????????? | | ???????????????????########?????##???????????????? | | ?????????????????????????????????????????????????? | | ?????????????????????????????????????????????????? | | ?????????????????????????????????????????????????? | | | | | | | | | | | | | | | | | | | | | | | | | | | | | | | | | | | +----------------------------------------------------+ Best States ------------- Heat Dissipation 38 Energy Generation 10 Energy Capacity 250 Matter Stores 300 Matter Capacity 300 Sight Range 16 Terrain Scan Density 10 Armor Coverage 150 Evasion (%) 50 Melee Accuracy 5 Recoil Reduction 3 Trap Extractor Capacity 6 Item Schematics ----------------- None Robot Schematics ------------------ None Fabricated ------------ Nothing Alien Tech Used ----------------- None Achievements -------------- None Challenges ------------ None Game ------ Seed HoverMultitargetingMallet Manual? 0 Play Time 00:27:54 Cumulative 7.9 hours Start 2024.07.10 @ 16:13:46 End 2024.07.11 @ 00:59:34 Sessions 2 Manual Loads 0 Difficulty Rogue Special Mode None Game No. 8 Rogue 8 Adventurer 0 Explorer 0 Win Type - Total 0 Types 0/0/0/0/0/0/0/0/0 Lore% 9 Gallery% 12 Achievement% 12 Wizard Run 0 Options --------- Layout 1 ASCII 0 Keyboard 0 Movement Mouse Keybinds 0 Fullscreen 1 Font 24/Smallcaps Map View 50x35 Zoom Use 0% Tactical HUD 1 Map Filters NONE Filters NONE Steam 1 RUN: e81803da-1330-491b-8608-34c6e36c64bb